[Event "Early-Titled-Tuesday-Blitz-September-05-2023"]
[Site "Chess.com"]
[Date "2023.09.05"]
[Round "2"]
[White "1stSecond"]
[Black "Ginger_GM"]
[Result "1-0"]
[WhiteElo "2924"]
[BlackElo "2611"]
[TimeControl "180+1"]
[EndTime "8:17:54 PDT"]
[Termination "1stSecond won by checkmate"]

1. c4 {[%clk 0:03:00.9]} 1... f5 {[%clk 0:02:58.1]} 2. Nc3 {[%clk 0:02:55.8]}
2... Nf6 {[%clk 0:02:55.7]} 3. Nf3 {[%clk 0:02:50.6]} 3... d6 {[%clk 0:02:53.7]}
4. g3 {[%clk 0:02:43.7]} 4... e5 {[%clk 0:02:53.6]} 5. Bg2 {[%clk 0:02:43.7]}
5... Be7 {[%clk 0:02:53.6]} 6. h4 {[%clk 0:02:39.3]} 6... O-O {[%clk 0:02:52.4]}
7. d4 {[%clk 0:02:39.6]} 7... Nc6 {[%clk 0:02:37.4]} 8. a3 {[%clk 0:02:33.2]}
8... a5 {[%clk 0:02:33.7]} 9. Rb1 {[%clk 0:02:32.7]} 9... Qe8 {[%clk 0:02:31.6]}
10. b4 {[%clk 0:02:28.9]} 10... axb4 {[%clk 0:02:31.6]} 11. axb4 {[%clk
0:02:29.8]} 11... e4 {[%clk 0:02:16.1]} 12. Ng5 {[%clk 0:02:28.6]} 12... Nd8
{[%clk 0:01:51.7]} 13. Nb5 {[%clk 0:02:23]} 13... Qd7 {[%clk 0:01:47.8]} 14. d5
{[%clk 0:02:23.4]} 14... h6 {[%clk 0:01:40.8]} 15. Nh3 {[%clk 0:02:19.5]} 15...
c6 {[%clk 0:01:40.2]} 16. Nd4 {[%clk 0:02:15.1]} 16... cxd5 {[%clk 0:01:39.5]}
17. cxd5 {[%clk 0:02:16]} 17... Qe8 {[%clk 0:01:18.1]} 18. Nf4 {[%clk
0:02:12.4]} 18... Qf7 {[%clk 0:01:15.6]} 19. Qb3 {[%clk 0:02:05.3]} 19... Ng4
{[%clk 0:01:02.5]} 20. Nde6 {[%clk 0:01:31.7]} 20... Bxe6 {[%clk 0:00:53.5]} 21.
dxe6 {[%clk 0:01:32]} 21... Qe8 {[%clk 0:00:53.1]} 22. Bb2 {[%clk 0:01:29.1]}
22... Nc6 {[%clk 0:00:44]} 23. O-O {[%clk 0:01:11.8]} 23... Kh7 {[%clk
0:00:39.8]} 24. f3 {[%clk 0:01:04.7]} 24... exf3 {[%clk 0:00:37.8]} 25. exf3
{[%clk 0:01:05.6]} 25... Nge5 {[%clk 0:00:37.2]} 26. Nd5 {[%clk 0:00:58.7]}
26... Bd8 {[%clk 0:00:34.7]} 27. f4 {[%clk 0:00:58.9]} 27... Ng4 {[%clk
0:00:33.6]} 28. Rfe1 {[%clk 0:00:58.6]} 28... Ne7 {[%clk 0:00:31.4]} 29. Bd4
{[%clk 0:00:54.2]} 29... Qg6 {[%clk 0:00:20.8]} 30. b5 {[%clk 0:00:43.7]} 30...
Re8 {[%clk 0:00:20]} 31. Nxe7 {[%clk 0:00:41.2]} 31... Bxe7 {[%clk 0:00:18.2]}
32. Bxb7 {[%clk 0:00:38.7]} 32... Rab8 {[%clk 0:00:12.8]} 33. Bg2 {[%clk
0:00:37.8]} 33... Nf6 {[%clk 0:00:12.1]} 34. b6 {[%clk 0:00:31.9]} 34... Nh5
{[%clk 0:00:12]} 35. Kh2 {[%clk 0:00:30.4]} 35... Bf6 {[%clk 0:00:12.2]} 36.
Rbd1 {[%clk 0:00:24.7]} 36... Bxd4 {[%clk 0:00:11.1]} 37. Rxd4 {[%clk
0:00:25.6]} 37... d5 {[%clk 0:00:10.2]} 38. Rb4 {[%clk 0:00:20.4]} 38... d4
{[%clk 0:00:09.4]} 39. b7 {[%clk 0:00:19.9]} 39... Nf6 {[%clk 0:00:07.7]} 40.
Bf3 {[%clk 0:00:19.4]} 40... Ng4+ {[%clk 0:00:07.5]} 41. Bxg4 {[%clk 0:00:19.6]}
41... Qxg4 {[%clk 0:00:08.4]} 42. Qd3 {[%clk 0:00:18.7]} 42... Re7 {[%clk
0:00:07.9]} 43. Re5 {[%clk 0:00:18.8]} 43... Rbxb7 {[%clk 0:00:08]} 44. Rxb7
{[%clk 0:00:18.9]} 44... Rxb7 {[%clk 0:00:07.9]} 45. Qxf5+ {[%clk 0:00:18]}
45... Qxf5 {[%clk 0:00:07.9]} 46. Rxf5 {[%clk 0:00:18.9]} 46... Re7 {[%clk
0:00:08.1]} 47. Re5 {[%clk 0:00:18.8]} 47... Kg6 {[%clk 0:00:09]} 48. g4 {[%clk
0:00:15.8]} 48... d3 {[%clk 0:00:07.4]} 49. f5+ {[%clk 0:00:13.2]} 49... Kf6
{[%clk 0:00:07.8]} 50. Rd5 {[%clk 0:00:13.8]} 50... h5 {[%clk 0:00:07.1]} 51.
g5# {[%clk 0:00:14.3]} 1-0

[Event "Early-Titled-Tuesday-Blitz-September-05-2023"]
[Site "Chess.com"]
[Date "2023.09.05"]
[Round "2"]
[White "IM_Tissir"]
[Black "Dewarfd"]
[Result "1-0"]
[WhiteElo "2458"]
[BlackElo "2145"]
[TimeControl "180+1"]
[EndTime "8:17:55 PDT"]
[Termination "IM_Tissir won on time"]

1. e4 {[%clk 0:02:53.4]} 1... e5 {[%clk 0:02:56.5]} 2. Nf3 {[%clk 0:02:51.3]}
2... Nc6 {[%clk 0:02:56]} 3. Bc4 {[%clk 0:02:44.2]} 3... Nf6 {[%clk 0:02:54.3]}
4. d3 {[%clk 0:02:44.2]} 4... Ne7 {[%clk 0:02:01.8]} 5. Nxe5 {[%clk 0:02:28.5]}
5... d5 {[%clk 0:02:02.1]} 6. exd5 {[%clk 0:02:24.4]} 6... Nexd5 {[%clk
0:02:02.2]} 7. O-O {[%clk 0:02:23]} 7... Bd6 {[%clk 0:01:58.6]} 8. d4 {[%clk
0:02:19]} 8... O-O {[%clk 0:01:56.2]} 9. Nc3 {[%clk 0:02:19.1]} 9... Nxc3 {[%clk
0:01:53.4]} 10. bxc3 {[%clk 0:02:19.1]} 10... Bg4 {[%clk 0:01:53.5]} 11. Qd3
{[%clk 0:02:16.5]} 11... c6 {[%clk 0:01:19.6]} 12. a4 {[%clk 0:02:14.9]} 12...
Qc7 {[%clk 0:01:18.1]} 13. f4 {[%clk 0:02:10.7]} 13... c5 {[%clk 0:00:56.2]} 14.
h3 {[%clk 0:02:09.8]} 14... Bd7 {[%clk 0:00:53.9]} 15. Nxd7 {[%clk 0:01:57.2]}
15... Qxd7 {[%clk 0:00:51.6]} 16. f5 {[%clk 0:01:53.9]} 16... Rad8 {[%clk
0:00:50.2]} 17. Bg5 {[%clk 0:01:51.9]} 17... Be7 {[%clk 0:00:37.3]} 18. Rad1
{[%clk 0:01:40.3]} 18... Qc7 {[%clk 0:00:33.8]} 19. Rfe1 {[%clk 0:01:32.1]}
19... Rfe8 {[%clk 0:00:31.3]} 20. Bb5 {[%clk 0:01:27.8]} 20... Rf8 {[%clk
0:00:30.7]} 21. Qf3 {[%clk 0:01:23.7]} 21... a6 {[%clk 0:00:29.2]} 22. Bf1
{[%clk 0:01:18.8]} 22... h6 {[%clk 0:00:28.5]} 23. Bf4 {[%clk 0:01:17.9]} 23...
Bd6 {[%clk 0:00:26.7]} 24. Be3 {[%clk 0:01:04.6]} 24... b6 {[%clk 0:00:23.5]}
25. Bxa6 {[%clk 0:01:03.1]} 25... cxd4 {[%clk 0:00:21.9]} 26. Bxd4 {[%clk
0:01:02.3]} 26... Bc5 {[%clk 0:00:20.8]} 27. Qf2 {[%clk 0:00:55.4]} 27... Rd5
{[%clk 0:00:15.9]} 28. Bxc5 {[%clk 0:00:20.1]} 28... Rxc5 {[%clk 0:00:14.9]} 29.
c4 {[%clk 0:00:20.3]} 29... Rd8 {[%clk 0:00:11.4]} 30. Rxd8+ {[%clk 0:00:19.5]}
30... Qxd8 {[%clk 0:00:12.3]} 31. Bb5 {[%clk 0:00:16.5]} 31... Qd6 {[%clk
0:00:10.9]} 32. Qe3 {[%clk 0:00:15.8]} 32... Kh7 {[%clk 0:00:09.4]} 33. Qd3
{[%clk 0:00:15.2]} 33... Qc7 {[%clk 0:00:08.6]} 34. Re3 {[%clk 0:00:12.9]} 34...
Qf4 {[%clk 0:00:08.4]} 35. Rf3 {[%clk 0:00:12.9]} 35... Qc1+ {[%clk 0:00:08.4]}
36. Kh2 {[%clk 0:00:13.4]} 36... Qb2 {[%clk 0:00:06.7]} 37. Qe2 {[%clk
0:00:12.6]} 37... Qd4 {[%clk 0:00:06.1]} 38. Qe7 {[%clk 0:00:12.1]} 38... Re5
{[%clk 0:00:01.8]} 39. Qxf7 {[%clk 0:00:11.5]} 1-0

[Event "Early-Titled-Tuesday-Blitz-September-05-2023"]
[Site "Chess.com"]
[Date "2023.09.05"]
[Round "2"]
[White "Nick12772"]
[Black "aghasiyevkamal"]
[Result "0-1"]
[WhiteElo "2335"]
[BlackElo "2526"]
[TimeControl "180+1"]
[EndTime "8:17:57 PDT"]
[Termination "aghasiyevkamal won by resignation"]

1. Nf3 {[%clk 0:03:00.9]} 1... Nf6 {[%clk 0:02:58.4]} 2. g3 {[%clk 0:03:01.4]}
2... d5 {[%clk 0:02:58.2]} 3. Bg2 {[%clk 0:03:01.8]} 3... Bf5 {[%clk 0:02:52.2]}
4. O-O {[%clk 0:03:02]} 4... c6 {[%clk 0:02:49.9]} 5. d3 {[%clk 0:03:00.6]} 5...
e6 {[%clk 0:02:49.1]} 6. Nbd2 {[%clk 0:03:00.9]} 6... h6 {[%clk 0:02:48.5]} 7.
b3 {[%clk 0:02:58.1]} 7... Bc5 {[%clk 0:02:46]} 8. Bb2 {[%clk 0:02:58.2]} 8...
O-O {[%clk 0:02:45.3]} 9. Re1 {[%clk 0:02:55.5]} 9... Nbd7 {[%clk 0:02:36.8]}
10. e4 {[%clk 0:02:55.4]} 10... Bg4 {[%clk 0:02:28.2]} 11. h3 {[%clk 0:02:53.2]}
11... Bxf3 {[%clk 0:02:24.8]} 12. Nxf3 {[%clk 0:02:45.3]} 12... dxe4 {[%clk
0:02:24.3]} 13. dxe4 {[%clk 0:02:42.5]} 13... Qb6 {[%clk 0:02:05.5]} 14. Bd4
{[%clk 0:02:40.3]} 14... Bxd4 {[%clk 0:02:01.8]} 15. Qxd4 {[%clk 0:02:39.3]}
15... e5 {[%clk 0:01:58.4]} 16. Qxb6 {[%clk 0:02:30]} 16... axb6 {[%clk
0:01:57.7]} 17. a4 {[%clk 0:02:30.5]} 17... Rfd8 {[%clk 0:01:56.9]} 18. Nd2
{[%clk 0:02:13.4]} 18... b5 {[%clk 0:01:41.4]} 19. axb5 {[%clk 0:02:11.9]} 19...
cxb5 {[%clk 0:01:42.3]} 20. Rxa8 {[%clk 0:01:36.9]} 20... Rxa8 {[%clk
0:01:41.5]} 21. Nf3 {[%clk 0:01:37.2]} 21... Ra2 {[%clk 0:01:39.8]} 22. Re2
{[%clk 0:01:37.5]} 22... Kf8 {[%clk 0:01:38.3]} 23. Ne1 {[%clk 0:01:35.6]} 23...
Nc5 {[%clk 0:01:33.9]} 24. f3 {[%clk 0:01:14.1]} 24... Nxb3 {[%clk 0:01:31]} 25.
Nd3 {[%clk 0:01:07]} 25... Nd4 {[%clk 0:01:27]} 26. Rd2 {[%clk 0:01:05.1]} 26...
Nd7 {[%clk 0:01:17.6]} 27. Nxe5 {[%clk 0:00:57.4]} 27... Nxe5 {[%clk 0:01:17.4]}
28. Rxd4 {[%clk 0:00:57.2]} 28... Rxc2 {[%clk 0:01:17.3]} 29. Rb4 {[%clk
0:00:43.3]} 29... Rc1+ {[%clk 0:01:10.6]} 30. Kh2 {[%clk 0:00:42.1]} 30... Rc5
{[%clk 0:01:10.4]} 31. f4 {[%clk 0:00:33]} 31... Nc6 {[%clk 0:01:03.5]} 32. Rb2
{[%clk 0:00:31]} 32... Na5 {[%clk 0:01:00.7]} 33. e5 {[%clk 0:00:28.4]} 33...
Nc4 {[%clk 0:00:57.6]} 34. Rb3 {[%clk 0:00:21.8]} 34... b6 {[%clk 0:00:56]} 35.
Bf1 {[%clk 0:00:18.5]} 35... g5 {[%clk 0:00:53.6]} 36. Bxc4 {[%clk 0:00:16.8]}
36... bxc4 {[%clk 0:00:54.5]} 37. Rxb6 {[%clk 0:00:17.1]} 37... gxf4 {[%clk
0:00:54.7]} 38. gxf4 {[%clk 0:00:17.8]} 38... c3 {[%clk 0:00:55.6]} 39. Rb1
{[%clk 0:00:18.1]} 39... c2 {[%clk 0:00:55.7]} 40. Rc1 {[%clk 0:00:18.9]} 40...
Rc4 {[%clk 0:00:56.6]} 41. Kg3 {[%clk 0:00:19.4]} 41... Ke7 {[%clk 0:00:56.7]}
42. f5 {[%clk 0:00:18.2]} 42... f6 {[%clk 0:00:55.3]} 43. e6 {[%clk 0:00:17.5]}
43... Rc5 {[%clk 0:00:55.8]} 44. Kg4 {[%clk 0:00:17.2]} 44... Kd6 {[%clk
0:00:53.8]} 45. h4 {[%clk 0:00:13.4]} 45... Ke7 {[%clk 0:00:50.4]} 46. Kf4
{[%clk 0:00:12.2]} 46... Rc4+ {[%clk 0:00:50.4]} 47. Kg3 {[%clk 0:00:12.8]}
47... Kd6 {[%clk 0:00:51.3]} 48. Kh3 {[%clk 0:00:09.9]} 48... Rc7 {[%clk
0:00:49.8]} 49. Kg4 {[%clk 0:00:09.9]} 49... Ke5 {[%clk 0:00:49.9]} 50. Re1+
{[%clk 0:00:06.7]} 50... Kd4 {[%clk 0:00:49]} 51. Rc1 {[%clk 0:00:03.2]} 51...
Ke5 {[%clk 0:00:45.1]} 52. Re1+ {[%clk 0:00:03]} 52... Kd6 {[%clk 0:00:45.6]}
53. Rc1 {[%clk 0:00:03.1]} 53... Ke7 {[%clk 0:00:46.1]} 54. Re1 {[%clk
0:00:02.9]} 54... c1=Q {[%clk 0:00:44.2]} 55. Rxc1 {[%clk 0:00:03.6]} 55... Rxc1
{[%clk 0:00:45.1]} 56. Kh5 {[%clk 0:00:04.5]} 56... Rc4 {[%clk 0:00:44.9]} 57.
Kxh6 {[%clk 0:00:02.1]} 57... Rxh4+ {[%clk 0:00:44.8]} 58. Kg6 {[%clk 0:00:03]}
58... Rg4+ {[%clk 0:00:45]} 59. Kh5 {[%clk 0:00:03.5]} 59... Rg5+ {[%clk
0:00:45.9]} 60. Kh4 {[%clk 0:00:04.4]} 60... Rxf5 {[%clk 0:00:46.5]} 0-1

[Event "Early-Titled-Tuesday-Blitz-September-05-2023"]
[Site "Chess.com"]
[Date "2023.09.05"]
[Round "2"]
[White "kirillshevchenko"]
[Black "GoltsevDmitry2000"]
[Result "0-1"]
[WhiteElo "2965"]
[BlackElo "2654"]
[TimeControl "180+1"]
[EndTime "8:17:58 PDT"]
[Termination "GoltsevDmitry2000 won by resignation"]

1. c4 {[%clk 0:02:59.5]} 1... e5 {[%clk 0:03:00]} 2. Nc3 {[%clk 0:02:57.6]} 2...
b6 {[%clk 0:02:59.8]} 3. Nf3 {[%clk 0:02:51.4]} 3... d6 {[%clk 0:02:57.8]} 4. d4
{[%clk 0:02:49.1]} 4... exd4 {[%clk 0:02:53.7]} 5. Nxd4 {[%clk 0:02:50]} 5...
Bb7 {[%clk 0:02:54]} 6. e4 {[%clk 0:02:49.9]} 6... Nd7 {[%clk 0:02:52.4]} 7. Be2
{[%clk 0:02:47.7]} 7... Ngf6 {[%clk 0:02:52.6]} 8. f3 {[%clk 0:02:46.4]} 8... g6
{[%clk 0:02:51.8]} 9. O-O {[%clk 0:02:45.5]} 9... Bg7 {[%clk 0:02:52.2]} 10. Bg5
{[%clk 0:02:41.7]} 10... O-O {[%clk 0:02:49]} 11. Qd2 {[%clk 0:02:41.8]} 11...
Re8 {[%clk 0:02:44.4]} 12. Rac1 {[%clk 0:02:37.1]} 12... a6 {[%clk 0:02:43.3]}
13. Rfd1 {[%clk 0:02:35.3]} 13... Qe7 {[%clk 0:02:28.9]} 14. Nd5 {[%clk
0:02:31.5]} 14... Qd8 {[%clk 0:02:28.8]} 15. Kh1 {[%clk 0:02:27.1]} 15... Nc5
{[%clk 0:02:18.6]} 16. Qf4 {[%clk 0:02:12.2]} 16... Nxd5 {[%clk 0:02:16.1]} 17.
cxd5 {[%clk 0:02:08]} 17... f6 {[%clk 0:02:11.3]} 18. Bh6 {[%clk 0:02:00.4]}
18... g5 {[%clk 0:02:09.7]} 19. Qg4 {[%clk 0:01:57.1]} 19... Bxh6 {[%clk
0:02:08.5]} 20. b4 {[%clk 0:01:57.6]} 20... Nd7 {[%clk 0:01:44.1]} 21. Ne6
{[%clk 0:01:42]} 21... Rxe6 {[%clk 0:01:44.3]} 22. dxe6 {[%clk 0:01:42.4]} 22...
Ne5 {[%clk 0:01:42.8]} 23. Qf5 {[%clk 0:01:17.9]} 23... Qe7 {[%clk 0:01:39.7]}
24. g3 {[%clk 0:01:17.2]} 24... Bc8 {[%clk 0:01:26.4]} 25. f4 {[%clk 0:01:08.5]}
25... Bxe6 {[%clk 0:01:21.3]} 26. Rxc7 {[%clk 0:01:08.5]} 26... Qxc7 {[%clk
0:01:14]} 27. Qxe6+ {[%clk 0:01:08.3]} 27... Qf7 {[%clk 0:01:11]} 28. Qh3 {[%clk
0:00:58.9]} 28... gxf4 {[%clk 0:00:36]} 29. Qxh6 {[%clk 0:00:58]} 29... f3
{[%clk 0:00:36.1]} 30. Bf1 {[%clk 0:00:57.6]} 30... Ng4 {[%clk 0:00:25.3]} 31.
Qd2 {[%clk 0:00:52.5]} 31... Rc8 {[%clk 0:00:18.4]} 32. h3 {[%clk 0:00:31.4]}
32... Ne5 {[%clk 0:00:18.4]} 33. Bxa6 {[%clk 0:00:27.9]} 33... Ra8 {[%clk
0:00:15]} 34. b5 {[%clk 0:00:27.6]} 34... Rd8 {[%clk 0:00:14.1]} 35. a4 {[%clk
0:00:26.6]} 35... Qc4 {[%clk 0:00:13.4]} 36. Qd5+ {[%clk 0:00:21.7]} 36... Qxd5
{[%clk 0:00:11]} 37. exd5 {[%clk 0:00:22.6]} 37... Kf7 {[%clk 0:00:08.2]} 38.
Kg1 {[%clk 0:00:22.3]} 38... Rd7 {[%clk 0:00:07.5]} 39. Rc1 {[%clk 0:00:21.3]}
39... f2+ {[%clk 0:00:07.9]} 40. Kf1 {[%clk 0:00:21.4]} 40... Re7 {[%clk
0:00:07.2]} 41. Bc8 {[%clk 0:00:20.5]} 41... Nd3 {[%clk 0:00:05.2]} 42. Be6+
{[%clk 0:00:20.7]} 42... Kg7 {[%clk 0:00:05.4]} 43. Rc3 {[%clk 0:00:15.3]} 43...
Nc5 {[%clk 0:00:06]} 44. Kxf2 {[%clk 0:00:15.2]} 44... Ne4+ {[%clk 0:00:06.4]}
45. Ke3 {[%clk 0:00:10.7]} 45... Nxc3 {[%clk 0:00:07.3]} 46. a5 {[%clk
0:00:11.6]} 46... bxa5 {[%clk 0:00:07.4]} 47. b6 {[%clk 0:00:11.5]} 47... Nxd5+
{[%clk 0:00:07.9]} 0-1

[Event "Early-Titled-Tuesday-Blitz-September-05-2023"]
[Site "Chess.com"]
[Date "2023.09.05"]
[Round "2"]
[White "Tonychess32"]
[Black "Hope_6"]
[Result "0-1"]
[WhiteElo "2417"]
[BlackElo "2702"]
[TimeControl "180+1"]
[EndTime "8:18:01 PDT"]
[Termination "Hope_6 won by checkmate"]

1. e4 {[%clk 0:03:00.9]} 1... c5 {[%clk 0:02:58.4]} 2. Nf3 {[%clk 0:03:00.8]}
2... e6 {[%clk 0:02:57.5]} 3. c3 {[%clk 0:03:01.3]} 3... Nf6 {[%clk 0:02:57]} 4.
e5 {[%clk 0:03:01.4]} 4... Nd5 {[%clk 0:02:57]} 5. d4 {[%clk 0:03:02.3]} 5...
cxd4 {[%clk 0:02:57.2]} 6. cxd4 {[%clk 0:03:03.2]} 6... Nc6 {[%clk 0:02:55]} 7.
Bd3 {[%clk 0:03:02.6]} 7... d6 {[%clk 0:02:55.4]} 8. exd6 {[%clk 0:03:02]} 8...
Bxd6 {[%clk 0:02:54.7]} 9. O-O {[%clk 0:03:02.7]} 9... O-O {[%clk 0:02:39.7]}
10. Nc3 {[%clk 0:03:02.9]} 10... Nxc3 {[%clk 0:02:18.9]} 11. bxc3 {[%clk
0:03:02.6]} 11... g6 {[%clk 0:02:06.4]} 12. Bh6 {[%clk 0:02:55.7]} 12... Re8
{[%clk 0:02:06.2]} 13. Re1 {[%clk 0:02:49.8]} 13... b6 {[%clk 0:02:04.9]} 14.
Qe2 {[%clk 0:02:12.4]} 14... Bb7 {[%clk 0:02:02.3]} 15. Rad1 {[%clk 0:02:08.8]}
15... Rc8 {[%clk 0:02:01.4]} 16. Ng5 {[%clk 0:01:58]} 16... Na5 {[%clk
0:01:40.2]} 17. c4 {[%clk 0:01:41.6]} 17... Bf8 {[%clk 0:01:26.4]} 18. Bxf8
{[%clk 0:01:40.8]} 18... Rxf8 {[%clk 0:01:25.9]} 19. Nf3 {[%clk 0:01:25]} 19...
Qf6 {[%clk 0:01:19]} 20. Ne5 {[%clk 0:01:21]} 20... Rfd8 {[%clk 0:01:17.7]} 21.
Qe3 {[%clk 0:01:16.3]} 21... Nc6 {[%clk 0:01:06]} 22. Be4 {[%clk 0:00:49.3]}
22... Nxe5 {[%clk 0:01:00.8]} 23. dxe5 {[%clk 0:00:49.6]} 23... Qe7 {[%clk
0:01:00.3]} 24. Bxb7 {[%clk 0:00:49.5]} 24... Qxb7 {[%clk 0:01:00]} 25. Rxd8+
{[%clk 0:00:49.2]} 25... Rxd8 {[%clk 0:00:59.5]} 26. Rc1 {[%clk 0:00:42.9]}
26... Qd7 {[%clk 0:00:55.8]} 27. h4 {[%clk 0:00:40.4]} 27... Qd2 {[%clk
0:00:53.5]} 28. c5 {[%clk 0:00:33.5]} 28... Qxe3 {[%clk 0:00:42.3]} 29. fxe3
{[%clk 0:00:33.3]} 29... Rd2 {[%clk 0:00:38.5]} 30. cxb6 {[%clk 0:00:33]} 30...
axb6 {[%clk 0:00:38.2]} 31. Rc8+ {[%clk 0:00:19.6]} 31... Kg7 {[%clk 0:00:37.9]}
32. Ra8 {[%clk 0:00:20.5]} 32... Rd5 {[%clk 0:00:31.4]} 33. Kf2 {[%clk
0:00:20.2]} 33... Rxe5 {[%clk 0:00:31.3]} 34. Rb8 {[%clk 0:00:17]} 34... Rb5
{[%clk 0:00:28.3]} 35. Kf3 {[%clk 0:00:17.5]} 35... h5 {[%clk 0:00:27.7]} 36. g3
{[%clk 0:00:17.6]} 36... Rb4 {[%clk 0:00:26.8]} 37. Rb7 {[%clk 0:00:17.6]} 37...
Kf6 {[%clk 0:00:26.5]} 38. a3 {[%clk 0:00:18]} 38... Rb3 {[%clk 0:00:26.2]} 39.
a4 {[%clk 0:00:18]} 39... Rb4 {[%clk 0:00:26.3]} 40. Rb8 {[%clk 0:00:16.4]}
40... e5 {[%clk 0:00:26.2]} 41. Rb7 {[%clk 0:00:15.7]} 41... Ke6 {[%clk
0:00:25.7]} 42. e4 {[%clk 0:00:09.9]} 42... Rb3+ {[%clk 0:00:19.2]} 43. Kf2
{[%clk 0:00:10]} 43... Kf6 {[%clk 0:00:18.4]} 44. Rb8 {[%clk 0:00:09.1]} 44...
Rb4 {[%clk 0:00:15.5]} 45. Kf3 {[%clk 0:00:08.6]} 45... Kg7 {[%clk 0:00:15.8]}
46. Ke3 {[%clk 0:00:08.4]} 46... f5 {[%clk 0:00:13.9]} 47. Rb7+ {[%clk
0:00:08.2]} 47... Kf6 {[%clk 0:00:13.9]} 48. Rb8 {[%clk 0:00:07.8]} 48... Rxe4+
{[%clk 0:00:13.2]} 49. Kf3 {[%clk 0:00:08.1]} 49... Rb4 {[%clk 0:00:12.6]} 50.
Rb7 {[%clk 0:00:08.6]} 50... e4+ {[%clk 0:00:11]} 51. Kf4 {[%clk 0:00:08.5]}
51... Rb3 {[%clk 0:00:10.2]} 52. a5 {[%clk 0:00:08.3]} 52... Rf3# {[%clk
0:00:09.7]} 0-1

[Event "Early-Titled-Tuesday-Blitz-September-05-2023"]
[Site "Chess.com"]
[Date "2023.09.05"]
[Round "2"]
[White "Korchmar_Vasiliy"]
[Black "Polish_fighter3000"]
[Result "1-0"]
[WhiteElo "2691"]
[BlackElo "3085"]
[TimeControl "180+1"]
[EndTime "8:18:02 PDT"]
[Termination "Korchmar_Vasiliy won on time"]

1. e4 {[%clk 0:03:00.9]} 1... d6 {[%clk 0:02:50.8]} 2. d4 {[%clk 0:03:00.4]}
2... Nf6 {[%clk 0:02:50.8]} 3. Nc3 {[%clk 0:03:00]} 3... e5 {[%clk 0:02:48.6]}
4. Nf3 {[%clk 0:02:59.5]} 4... Nbd7 {[%clk 0:02:48.4]} 5. Bc4 {[%clk 0:02:59.5]}
5... Be7 {[%clk 0:02:48.1]} 6. O-O {[%clk 0:02:59.9]} 6... c6 {[%clk 0:02:46.1]}
7. a4 {[%clk 0:02:59.2]} 7... h6 {[%clk 0:02:45.8]} 8. Re1 {[%clk 0:02:53]} 8...
Qc7 {[%clk 0:02:45.3]} 9. Be3 {[%clk 0:02:45.4]} 9... a5 {[%clk 0:02:36.2]} 10.
d5 {[%clk 0:02:21.6]} 10... g5 {[%clk 0:02:32.1]} 11. dxc6 {[%clk 0:02:04.7]}
11... bxc6 {[%clk 0:02:33]} 12. Nd2 {[%clk 0:02:02.6]} 12... Nb6 {[%clk
0:02:16.1]} 13. Bb3 {[%clk 0:02:02.3]} 13... Ng4 {[%clk 0:01:59]} 14. Nf1 {[%clk
0:02:02.6]} 14... h5 {[%clk 0:01:43.2]} 15. h3 {[%clk 0:01:37.7]} 15... Nxe3
{[%clk 0:01:41.5]} 16. Nxe3 {[%clk 0:01:37.8]} 16... Nd7 {[%clk 0:01:27.7]} 17.
Ncd5 {[%clk 0:01:03.6]} 17... cxd5 {[%clk 0:01:24.5]} 18. Qxd5 {[%clk
0:01:04.5]} 18... Nb6 {[%clk 0:01:12]} 19. Qxf7+ {[%clk 0:01:04.4]} 19... Kd8
{[%clk 0:01:12.2]} 20. Rad1 {[%clk 0:00:55.1]} 20... h4 {[%clk 0:01:02.3]} 21.
Rd2 {[%clk 0:00:42.2]} 21... Rf8 {[%clk 0:00:50.2]} 22. Qg6 {[%clk 0:00:41.5]}
22... Bd7 {[%clk 0:00:48.8]} 23. Red1 {[%clk 0:00:30.1]} 23... Rb8 {[%clk
0:00:41.2]} 24. Be6 {[%clk 0:00:21]} 24... Rf6 {[%clk 0:00:32.1]} 25. Qg8+
{[%clk 0:00:20.3]} 25... Rf8 {[%clk 0:00:32.7]} 26. Qg6 {[%clk 0:00:20.9]} 26...
Bxe6 {[%clk 0:00:32.6]} 27. Qxe6 {[%clk 0:00:20]} 27... Qd7 {[%clk 0:00:33.2]}
28. Rxd6 {[%clk 0:00:19.5]} 28... Bxd6 {[%clk 0:00:29.1]} 29. Rxd6 {[%clk
0:00:20.4]} 29... Kc8 {[%clk 0:00:22.1]} 30. Rxd7 {[%clk 0:00:19.9]} 30... Nxd7
{[%clk 0:00:23]} 31. Qc6+ {[%clk 0:00:17.8]} 31... Kd8 {[%clk 0:00:22.9]} 32. b3
{[%clk 0:00:12.2]} 32... Rf6 {[%clk 0:00:20.2]} 33. Qc4 {[%clk 0:00:11]} 33...
Ke7 {[%clk 0:00:18.3]} 34. Nd5+ {[%clk 0:00:10.9]} 34... Kf8 {[%clk 0:00:13.8]}
35. Nxf6 {[%clk 0:00:11.8]} 35... Nxf6 {[%clk 0:00:14.3]} 36. Qc5+ {[%clk
0:00:11.5]} 36... Kg8 {[%clk 0:00:13.5]} 37. Qxe5 {[%clk 0:00:11.4]} 37... Rf8
{[%clk 0:00:14.2]} 38. Qxg5+ {[%clk 0:00:11.6]} 38... Kf7 {[%clk 0:00:14.4]} 39.
Qxa5 {[%clk 0:00:11.1]} 39... Re8 {[%clk 0:00:13.3]} 40. f3 {[%clk 0:00:07.9]}
40... Re7 {[%clk 0:00:10.6]} 41. Qb5 {[%clk 0:00:07.6]} 41... Rd7 {[%clk
0:00:10.5]} 42. Qc4+ {[%clk 0:00:07.7]} 42... Kg6 {[%clk 0:00:09.6]} 43. a5
{[%clk 0:00:06.7]} 43... Rd1+ {[%clk 0:00:09.4]} 44. Kf2 {[%clk 0:00:07]} 44...
Rd2+ {[%clk 0:00:07.7]} 45. Ke3 {[%clk 0:00:06.8]} 45... Rxg2 {[%clk 0:00:07.9]}
46. a6 {[%clk 0:00:07.4]} 46... Rg1 {[%clk 0:00:05.3]} 47. a7 {[%clk 0:00:06.5]}
47... Ra1 {[%clk 0:00:05.2]} 48. Qc7 {[%clk 0:00:06.8]} 1-0